bitfinex/quotes_BTCUSD_20250124
["timestamp","ask_amount","ask_price","bid_price","bid_amount"]
[1737706595665,0.26197563,105210.0,105200.0,0.1259009]
[1737706596075,0.26297563,105210.0,105200.0,0.1259009]
[1737706601323,0.26097563,105210.0,105200.0,0.1259009]
[1737706601528,0.26097563,105210.0,105200.0,0.1269009]
[1737706601728,0.16462834,105210.0,105200.0,0.1269009]
[1737706601913,0.06958134,105210.0,105200.0,0.2219579]
[1737706602135,0.001298,105210.0,105200.0,0.2219579]
[1737706603564,0.001298,105210.0,105200.0,0.31930519]
[1737706604011,0.00035821,105220.0,105210.0,0.218547]
[1737706604214,0.00050594,105220.0,105210.0,0.218547]
[1737706605201,0.00050594,105220.0,105210.0,0.219547]
[1737706605714,0.00050594,105220.0,105210.0,0.224547]
[1737706606422,0.00050594,105220.0,105210.0,0.32189429]
[1737706610347,0.00050594,105220.0,105210.0,0.32203629]
[1737706610895,0.00029821,105230.0,105210.0,0.32203629]
[1737706611102,0.00094913,105260.0,105250.0,0.222611]
[1737706611308,0.00094913,105270.0,105260.0,0.222602]
[1737706611743,0.00094913,105270.0,105260.0,0.31994929]
[1737706612379,0.01654114,105290.0,105270.0,0.1257]
[1737706612581,0.08482448,105290.0,105280.0,0.171084]
[1737706613843,0.01654114,105290.0,105280.0,0.171084]
[1737706614809,0.01654114,105290.0,105280.0,0.173084]
[1737706615010,0.01654114,105290.0,105280.0,0.174084]
[1737706616680,0.01654114,105290.0,105280.0,0.172084]
[1737706616990,0.01654114,105290.0,105280.0,0.171084]
[1737706617198,0.01654114,105290.0,105280.0,0.172084]
[1737706617609,0.01654114,105290.0,105280.0,0.176084]
[1737706617809,0.01654114,105290.0,105280.0,0.171084]
[1737706618221,0.01654114,105290.0,105280.0,0.176084]
[1737706618439,0.31278875,105290.0,105280.0,0.0821]
[1737706619107,0.31278875,105290.0,105280.0,0.006]
[1737706619930,0.094984,105280.0,105270.0,0.1356458]
[1737706620135,0.19890932,105280.0,105270.0,0.1356458]
[1737706620552,0.19890932,105280.0,105270.0,0.0098458]
[1737706620553,0.29625661,105280.0,105270.0,0.0098458]
[1737706620965,0.094993,105270.0,105260.0,0.0809]
[1737706621167,0.19891832,105270.0,105260.0,0.0908164]
[1737706621810,0.094993,105270.0,105260.0,0.0908164]
[1737706622013,0.29389532,105280.0,105260.0,0.0908164]
[1737706622014,0.48388032,105280.0,105260.0,0.0908164]
[1737706622222,0.57887132,105280.0,105260.0,0.1858174]
[1737706622626,0.474946,105280.0,105260.0,0.1858174]
[1737706622830,0.379952,105280.0,105260.0,0.1858174]
[1737706623090,0.38888732,105280.0,105270.0,0.001]
[1737706623506,0.57886832,105280.0,105260.0,0.1908174]
[1737706623710,0.094993,105270.0,105260.0,0.1908174]
[1737706623921,0.19891832,105270.0,105260.0,0.0918164]
[1737706624138,0.40019093,105270.0,105260.0,0.1659164]
[1737706625108,0.29626561,105270.0,105260.0,0.0149164]
[1737706625493,0.095011,105250.0,105240.0,0.2283]
[1737706625688,0.095011,105250.0,105240.0,0.2382898]
[1737706626934,0.095011,105250.0,105240.0,0.3333098]
[1737706627462,0.095011,105250.0,105240.0,0.2392898]
[1737706627621,0.095011,105250.0,105240.0,0.3343098]
[1737706628270,0.095011,105250.0,105240.0,0.2442898]
[1737706628672,0.19893632,105250.0,105240.0,0.2442898]
[1737706629436,0.095011,105250.0,105240.0,0.2442898]
[1737706629637,0.095011,105250.0,105240.0,0.2382898]
[1737706629793,0.095011,105250.0,105240.0,0.2392898]
[1737706630679,0.19893632,105250.0,105240.0,0.2392898]
[1737706630915,0.19893632,105250.0,105240.0,0.1609898]
[1737706631119,0.29628361,105250.0,105240.0,0.0109898]
[1737706631503,0.29628361,105250.0,105240.0,0.001]
[1737706631710,0.29628361,105250.0,105240.0,0.151]
[1737706631923,0.29628361,105250.0,105240.0,0.153]
[1737706636773,0.31928361,105250.0,105240.0,0.153]
[1737706636968,0.39458361,105250.0,105240.0,0.003]
[1737706637561,0.56610893,105250.0,105240.0,0.003]
[1737706638413,0.56610893,105250.0,105240.0,0.001]
[1737706639060,0.033,105240.0,105230.0,0.000142]
[1737706639298,0.43321793,105240.0,105230.0,0.000142]
[1737706641252,0.47124393,105240.0,105230.0,0.000142]
[1737706643810,0.48102721,105240.0,105230.0,0.000142]
[1737706653056,0.47102721,105240.0,105230.0,0.000142]
[1737706653346,0.43300121,105240.0,105230.0,0.000142]
[1737706658837,0.43329963,105240.0,105230.0,0.000142]
[1737706665886,0.45329963,105240.0,105230.0,0.000142]
[1737706667698,0.44029963,105240.0,105230.0,0.000142]
[1737706668225,0.29357251,105240.0,105230.0,0.000142]
[1737706668475,0.35862191,105240.0,105230.0,0.000142]
[1737706668678,0.33637431,105240.0,105230.0,0.000142]
[1737706668902,0.3893754,105240.0,105230.0,0.000142]
[1737706669812,0.3693754,105240.0,105230.0,0.000142]
[1737706670030,0.3893754,105240.0,105230.0,0.000142]
[1737706672067,0.4123754,105240.0,105230.0,0.000142]
[1737706681739,0.46039426,105240.0,105230.0,0.000142]
[1737706682076,0.5456706,105240.0,105230.0,0.000142]
[1737706684515,0.6395706,105240.0,105230.0,0.000142]
[1737706685971,0.6425706,105240.0,105230.0,0.000142]
[1737706686385,0.6405706,105240.0,105230.0,0.000142]
[1737706686764,0.6465706,105240.0,105230.0,0.001142]
[1737706686977,0.6465706,105240.0,105230.0,0.000142]
[1737706687206,0.6455706,105240.0,105230.0,0.000142]
[1737706687397,0.6555706,105240.0,105230.0,0.001142]
[1737706687792,0.65887723,105240.0,105230.0,0.001142]
[1737706689730,0.57360089,105240.0,105230.0,1e-06]
[1737706693938,0.57360089,105240.0,105230.0,0.000143]
[1737706695318,0.44970089,105240.0,105230.0,0.000143]
[1737706695863,0.43670089,105240.0,105230.0,0.000143]
[1737706696092,0.43670089,105240.0,105230.0,0.077043]
[1737706696305,0.45970089,105240.0,105230.0,0.077043]
[1737706697029,0.32257494,105240.0,105230.0,0.077043]
[1737706697230,0.32257494,105240.0,105230.0,0.122343]
[1737706697445,0.31279166,105240.0,105230.0,0.122343]
[1737706698397,0.29779166,105240.0,105230.0,0.122342]
[1737706698844,0.29979166,105240.0,105230.0,0.122342]
[1737706699228,0.30079166,105240.0,105230.0,0.122342]
[1737706699817,0.29979166,105240.0,105230.0,0.122342]
[1737706706321,0.40391761,105240.0,105230.0,0.122342]
[1737706708529,0.19944437,105240.0,105230.0,0.122342]
[1737706709533,0.19944437,105240.0,105230.0,0.123342]
[1737706720272,0.19444437,105240.0,105230.0,0.123342]
[1737706723791,0.22686398,105240.0,105230.0,0.123342]
[1737706728287,0.2271624,105240.0,105230.0,0.123342]
[1737706728686,0.15888962,105240.0,105230.0,0.123342]
[1737706732828,0.2271624,105240.0,105230.0,0.123342]
[1737706739385,0.15888962,105240.0,105230.0,0.123342]
[1737706743353,0.2271624,105240.0,105230.0,0.1321661]
[1737706744343,0.2271624,105240.0,105230.0,0.1436461]
[1737706748815,0.39278247,105240.0,105230.0,0.0214461]
[1737706749024,0.54348247,105240.0,105230.0,0.0214461]
[1737706749245,0.57348247,105240.0,105230.0,0.0214461]
[1737706749655,0.45220969,105240.0,105230.0,0.0214461]
[1737706749855,0.32450969,105240.0,105230.0,0.0214461]
[1737706750116,0.32450969,105240.0,105230.0,0.012622]
[1737706750332,0.32450969,105240.0,105230.0,0.011622]
[1737706752258,0.39278247,105240.0,105230.0,0.011622]
[1737706752464,0.32750969,105240.0,105230.0,0.011622]
[1737706753414,0.39578247,105240.0,105230.0,0.011622]
[1737706754696,0.32750969,105240.0,105230.0,0.011622]
[1737706756633,0.32750969,105240.0,105230.0,0.087522]
[1737706757566,0.00329842,105240.0,105230.0,0.377651]
[1737706758183,0.00329842,105240.0,105230.0,0.47499829]
[1737706759348,0.00029842,105240.0,105230.0,0.47499829]
[1737706759616,0.00029842,105240.0,105230.0,0.47599829]
[1737706760240,0.00029842,105240.0,105230.0,0.47799829]
[1737706760470,0.00029842,105240.0,105230.0,0.47899829]
[1737706760595,0.00029842,105240.0,105230.0,0.47599829]
[1737706760815,0.00129842,105240.0,105230.0,0.48099829]
[1737706761266,0.00129842,105240.0,105230.0,0.48199829]
[1737706764105,0.00129842,105240.0,105230.0,0.49131197]
[1737706764306,0.00129842,105240.0,105230.0,0.39628297]
[1737706764517,0.00129842,105240.0,105230.0,0.289622]
[1737706764719,0.20029248,105240.0,105230.0,0.289622]
[1737706765097,0.10527248,105240.0,105230.0,0.289622]
[1737706765303,0.20029248,105240.0,105230.0,0.289622]
[1737706766950,0.40161383,105240.0,105230.0,0.168622]
[1737706767447,0.29763977,105240.0,105230.0,0.168622]
[1737706767777,0.29763977,105240.0,105230.0,0.167622]
[1737706768033,0.29763977,105240.0,105230.0,0.168622]
[1737706769145,0.29663977,105240.0,105230.0,0.162622]
[1737706770494,0.30596065,105240.0,105230.0,0.162622]
[1737706777454,0.43293471,105240.0,105230.0,0.162622]
[1737706777689,0.32896065,105240.0,105230.0,0.162622]
[1737706778297,0.30596065,105240.0,105230.0,0.162622]
[1737706781980,0.19929248,105240.0,105230.0,0.162622]
[1737706782157,0.09531842,105240.0,105230.0,0.244622]
[1737706782371,0.19929248,105240.0,105230.0,0.244622]
[1737706786030,0.29663977,105240.0,105230.0,0.162622]
[1737706787018,0.31963977,105240.0,105230.0,0.162622]
[1737706787226,0.42361383,105240.0,105230.0,0.162622]
[1737706787450,0.31963977,105240.0,105230.0,0.162622]
[1737706798264,0.31963977,105240.0,105230.0,0.240122]
[1737706800681,0.19266571,105240.0,105230.0,0.240122]
[1737706801038,0.29663977,105240.0,105230.0,0.240122]
[1737706803410,0.19266571,105240.0,105230.0,0.240122]
[1737706803623,0.09531842,105240.0,105230.0,0.240122]
[1737706804434,0.09531842,105240.0,105230.0,0.24894693]
[1737706806287,0.09531842,105240.0,105230.0,0.240122]
[1737706806488,0.00029842,105240.0,105230.0,0.380851]
[1737706808307,0.00029842,105240.0,105230.0,0.380127]
[1737706809238,0.00029842,105240.0,105230.0,0.380269]
[1737706810172,0.00029842,105240.0,105230.0,0.47761629]
[1737706811404,0.00029842,105240.0,105230.0,0.47661629]
[1737706811601,0.00029842,105240.0,105230.0,0.47761629]
[1737706813337,0.00129842,105240.0,105230.0,0.48361629]
[1737706824886,0.00129842,105240.0,105230.0,0.14124]
[1737706825096,0.00129842,105240.0,105230.0,0.113069]
[1737706825881,0.00129842,105240.0,105230.0,0.33721629]
[1737706826046,0.00129842,105240.0,105230.0,0.48721629]
[1737706826922,0.00129842,105240.0,105230.0,0.39218729]
[1737706827240,0.00129842,105240.0,105230.0,0.48721629]
[1737706831887,0.00399868,105240.0,105230.0,0.48721629]
[1737706844193,0.00399868,105240.0,105230.0,0.51621737]
[1737706844397,0.00399868,105240.0,105230.0,0.51521737]
[1737706844594,0.00299868,105240.0,105230.0,0.50921737]
[1737706844841,0.00299868,105240.0,105230.0,0.52005737]
[1737706845055,0.00399868,105240.0,105230.0,0.52605737]
[1737706845261,0.00399868,105240.0,105230.0,0.52505737]
[1737706845912,0.00299868,105240.0,105230.0,0.51905737]
[1737706846127,0.00399868,105240.0,105230.0,0.52505737]
[1737706847173,0.00399868,105240.0,105230.0,0.52605737]
[1737706848134,0.00399868,105240.0,105230.0,0.49705629]
[1737706849766,0.360287,105270.0,105230.0,0.49705629]
[1737706849767,0.34100727,105270.0,105260.0,0.15]
[1737706849937,0.341155,105270.0,105260.0,0.15]
[1737706850389,0.341155,105270.0,105250.0,0.294857]
[1737706850768,0.531151,105270.0,105250.0,0.38236429]
[1737706850867,0.341155,105270.0,105250.0,0.57237729]
[1737706851109,0.341155,105270.0,105260.0,0.001]
[1737706851579,0.341155,105270.0,105250.0,0.58218679]
[1737706851792,0.341155,105270.0,105250.0,0.39217379]
[1737706852027,0.341155,105270.0,105260.0,0.003]
[1737706852651,0.341155,105270.0,105260.0,0.004]
[1737706852897,0.341155,105270.0,105260.0,0.001]
[1737706854222,0.44512906,105270.0,105260.0,0.001]
[1737706854454,0.341155,105270.0,105260.0,0.001]
[1737706854812,0.341155,105270.0,105260.0,0.004]
[1737706855285,0.34145321,105270.0,105260.0,0.004]
[1737706856733,0.46842727,105270.0,105260.0,0.004]
[1737706856938,0.71474862,105270.0,105260.0,0.004]
[1737706857142,0.61355807,105270.0,105260.0,0.004]
[1737706857558,0.71753213,105270.0,105260.0,0.004]
[1737706857760,0.71753213,105270.0,105260.0,0.003]
[1737706857983,0.173012,105250.0,105230.0,0.56627]
[1737706858188,0.173012,105250.0,105230.0,0.67349799]
[1737706858465,0.00276269,105240.0,105230.0,0.48343899]
[1737706859278,0.00276269,105240.0,105230.0,0.48943899]
[1737706859657,0.00276269,105240.0,105230.0,0.48343899]
[1737706860401,0.00276269,105240.0,105230.0,0.48943899]
[1737706860654,0.00276269,105240.0,105230.0,0.49043899]
[1737706861197,0.00276269,105240.0,105230.0,0.48943899]
[1737706861333,0.00276269,105240.0,105230.0,0.49043899]
[1737706864744,0.20175675,105240.0,105230.0,0.0279207]
[1737706865130,0.20175675,105240.0,105230.0,0.01804]
[1737706865859,0.5016781,105240.0,105230.0,0.01804]
[1737706866048,0.5508781,105240.0,105230.0,0.01704]
[1737706866441,0.5508781,105240.0,105230.0,0.01204]
[1737706866641,0.5508781,105240.0,105230.0,0.01504]
[1737706866970,0.44690404,105240.0,105230.0,0.01404]
[1737706867110,0.00276269,105240.0,105230.0,0.109069]
[1737706867326,0.00276269,105240.0,105230.0,0.189269]
[1737706867527,0.00276269,105240.0,105230.0,0.28661629]
[1737706867756,0.216804,105260.0,105240.0,0.38007]
[1737706868074,0.40681,105260.0,105240.0,0.285044]
[1737706868460,0.40681,105260.0,105240.0,0.2950296]
[1737706868608,0.095004,105260.0,105240.0,0.4850626]
[1737706869015,0.285009,105260.0,105240.0,0.2980296]
[1737706869231,0.19898506,105250.0,105240.0,0.0129856]
[1737706869708,0.19898506,105250.0,105240.0,0.003]
[1737706870947,0.10397406,105250.0,105240.0,0.09902]
[1737706871149,0.70440606,105260.0,105240.0,0.28606]
[1737706871500,0.70440606,105260.0,105240.0,0.28806]
[1737706871703,0.70440606,105260.0,105240.0,0.2979258]
[1737706872371,0.70440606,105260.0,105240.0,0.2949258]
[1737706872536,0.70440606,105260.0,105240.0,0.2979258]
[1737706873260,0.70440606,105260.0,105240.0,0.2969258]
[1737706873483,0.70440606,105260.0,105240.0,0.2979258]
[1737706873696,0.285015,105260.0,105240.0,0.2979258]
[1737706873933,0.38898906,105260.0,105240.0,0.2979258]
[1737706875544,0.57900306,105260.0,105240.0,0.2979258]
[1737706877807,0.38898906,105260.0,105240.0,0.2979258]
[1737706878470,0.285015,105260.0,105240.0,0.2979258]
[1737706878685,0.475029,105260.0,105240.0,0.2979258]
[1737706878915,0.095011,105250.0,105240.0,0.0128658]
[1737706879124,0.0977781,105250.0,105240.0,0.0128658]
[1737706879324,0.20175216,105250.0,105240.0,0.003]
[1737706879951,0.20175216,105250.0,105230.0,0.86362009]
[1737706880156,0.20175216,105250.0,105240.0,0.001]
[1737706881300,0.20175216,105250.0,105240.0,0.003]
[1737706881515,0.20175216,105250.0,105240.0,0.002]
[1737706882073,0.35075216,105250.0,105240.0,0.002]
[1737706882306,0.44809945,105250.0,105240.0,0.002]
[1737706883066,0.35308845,105250.0,105230.0,0.01104]
[1737706883273,0.19899406,105240.0,105230.0,0.01104]
[1737706883481,0.20175422,105240.0,105230.0,0.01104]
[1737706884664,0.20175422,105240.0,105230.0,0.01204]
[1737706885090,0.20175422,105240.0,105230.0,0.01404]
[1737706885289,0.20175422,105240.0,105230.0,0.01304]
[1737706885514,0.20175422,105240.0,105230.0,0.01404]
[1737706889142,0.20175422,105240.0,105230.0,0.01304]
[1737706889479,0.20175422,105240.0,105230.0,0.01104]
[1737706889635,0.20275422,105240.0,105230.0,0.01104]
[1737706890040,0.40200151,105240.0,105230.0,0.01104]
[1737706890255,0.50597557,105240.0,105230.0,0.01104]
[1737706891452,0.40200151,105240.0,105230.0,0.01104]
[1737706891656,0.09878016,105240.0,105230.0,0.01104]
[1737706891839,0.00376016,105240.0,105230.0,0.106069]
[1737706892041,0.00376016,105240.0,105230.0,0.01104]
[1737706892042,0.20275422,105240.0,105230.0,0.01104]
[1737706892452,0.20335888,105240.0,105230.0,0.01104]
[1737706892656,0.20335888,105240.0,105230.0,0.01204]
[1737706893303,0.00436482,105240.0,105230.0,0.109069]
[1737706893710,0.09938482,105240.0,105230.0,0.01404]
[1737706893890,0.09938482,105240.0,105230.0,0.01304]
[1737706894087,0.09938482,105240.0,105230.0,0.01404]
[1737706894555,0.09938482,105240.0,105230.0,0.01204]
[1737706894716,0.32370617,105240.0,105230.0,0.01204]
[1737706894883,0.32370617,105240.0,105230.0,0.01404]
[1737706898616,0.21973211,105240.0,105230.0,0.01404]
[1737706900463,0.09938482,105240.0,105230.0,0.01404]
[1737706900668,0.00436482,105240.0,105230.0,0.109069]
[1737706900875,0.00436482,105240.0,105230.0,0.233269]
[1737706901079,0.09938482,105240.0,105230.0,0.233269]
[1737706901290,0.00436482,105240.0,105230.0,0.233269]
[1737706902647,0.09938482,105240.0,105230.0,0.233269]
[1737706904085,0.00436482,105240.0,105230.0,0.233269]
[1737706904586,0.09938482,105240.0,105230.0,0.233269]
[1737706905728,0.00436482,105240.0,105230.0,0.233269]
[1737706907555,0.09938482,105240.0,105230.0,0.233269]
[1737706907737,0.00436482,105240.0,105230.0,0.233269]
[1737706908832,0.09938482,105240.0,105230.0,0.233269]
[1737706909235,0.09938482,105240.0,105230.0,0.13824]
[1737706909449,0.09938482,105240.0,105230.0,0.233269]
[1737706910255,0.09938482,105240.0,105230.0,0.383269]
[1737706910644,0.09938482,105240.0,105230.0,0.28824]
[1737706912507,0.09938482,105240.0,105230.0,0.383269]
[1737706913126,0.09938482,105240.0,105230.0,0.28824]
[1737706914338,0.09938482,105240.0,105230.0,0.24164]
[1737706915265,0.00436482,105240.0,105230.0,0.24164]
[1737706919208,0.00436482,105240.0,105230.0,0.09164]
[1737706922061,0.00436482,105240.0,105230.0,0.10113816]
[1737706922959,0.00436482,105240.0,105230.0,0.19616716]
[1737706924386,0.00436482,105240.0,105230.0,0.24206716]
[1737706924766,0.55473594,105270.0,105250.0,0.08]
[1737706924946,0.46208423,105270.0,105250.0,0.08]
[1737706925159,0.023,105260.0,105250.0,0.08]
[1737706925355,0.023,105260.0,105250.0,0.0898229]
[1737706926489,0.025,105260.0,105250.0,0.0898229]
[1737706928096,0.120002,105260.0,105250.0,0.0898229]
[1737706928397,0.32132335,105260.0,105250.0,0.0098229]
[1737706928838,0.51133435,105260.0,105230.0,0.62256316]
[1737706929093,0.51133435,105260.0,105230.0,0.63239996]
[1737706929668,0.51133435,105260.0,105230.0,0.82244896]
[1737706929872,0.023,105260.0,105240.0,0.219817]
[1737706930031,0.023,105260.0,105240.0,0.409857]
[1737706930635,0.023,105260.0,105240.0,0.6097717]
[1737706931185,0.023,105260.0,105240.0,0.4197317]
[1737706931393,0.024,105260.0,105240.0,0.4197317]
[1737706932358,0.22297706,105260.0,105240.0,0.4197317]
[1737706932587,0.51033035,105260.0,105240.0,0.1346747]
[1737706932762,0.31771269,105260.0,105240.0,0.4207347]
[1737706933163,0.31771269,105260.0,105240.0,0.4227347]
[1737706938862,0.11873563,105260.0,105240.0,0.6127747]
[1737706939094,0.00371778,105250.0,105240.0,0.4227347]
[1737706939851,0.00371778,105250.0,105240.0,0.4197347]
[1737706940262,0.00521156,105250.0,105240.0,0.4227347]
[1737706944206,0.00521156,105250.0,105240.0,0.52008199]
[1737706944606,0.00044594,105270.0,105240.0,0.34586199]
[1737706944878,0.00044594,105270.0,105260.0,0.219502]
[1737706949351,0.00044594,105270.0,105260.0,0.31684929]
[1737706950610,0.00044594,105270.0,105260.0,0.31884929]
[1737706950865,0.00044594,105270.0,105260.0,0.31684929]
[1737706951371,0.00044594,105270.0,105260.0,0.32184929]
[1737706951601,0.00044594,105270.0,105260.0,0.32284929]
[1737706952193,0.00044594,105270.0,105260.0,0.32184929]
[1737706952398,0.00044594,105270.0,105260.0,0.32284929]
[1737706953627,0.00044594,105270.0,105260.0,0.34147689]
[1737706954036,0.00571029,105270.0,105260.0,0.35094817]
[1737706958270,0.00571029,105270.0,105260.0,0.35109017]
[1737706958486,0.00029821,105280.0,105270.0,0.094993]
[1737706958669,0.00079045,105280.0,105270.0,0.31314029]
[1737706960561,0.00079045,105280.0,105270.0,0.31814029]
[1737706961487,0.00079045,105280.0,105270.0,0.31914029]
[1737706962315,0.00079045,105280.0,105270.0,0.31814029]
[1737706962637,0.00079045,105280.0,105270.0,0.31914029]
[1737706963431,0.00079045,105280.0,105270.0,0.31414029]
[1737706963636,0.00079045,105280.0,105270.0,0.31914029]
[1737706963835,0.00079045,105280.0,105270.0,0.31814029]
[1737706964165,0.00079045,105280.0,105270.0,0.31914029]
[1737706966028,0.00788723,105280.0,105270.0,0.31914029]
[1737706967005,0.01604851,105290.0,105280.0,0.094984]
[1737706967218,0.01604851,105290.0,105280.0,0.32113129]
[1737706968316,0.000298,105320.0,105310.0,0.094957]
[1737706968519,0.00044561,105320.0,105310.0,0.177357]
[1737706969110,0.00647358,105320.0,105310.0,0.177357]
[1737706970698,0.00647358,105320.0,105310.0,0.182357]
[1737706970913,0.00647358,105320.0,105310.0,0.183357]
[1737706972414,0.08537358,105320.0,105310.0,0.100957]
[1737706972616,0.0841616,105320.0,105310.0,0.006]
[1737706972956,0.0841616,105320.0,105310.0,0.100957]
[1737706973167,0.0052616,105320.0,105310.0,0.222257]
[1737706973584,0.0052616,105320.0,105310.0,0.226257]
[1737706973788,0.0052616,105320.0,105310.0,0.222257]
[1737706974206,0.0052616,105320.0,105310.0,0.223257]
[1737706974610,0.0052616,105320.0,105310.0,0.224257]
[1737706975028,0.0052616,105320.0,105310.0,0.222257]
[1737706975655,0.0052616,105320.0,105310.0,0.1055163]
[1737706976293,0.0052616,105320.0,105310.0,0.1105163]
[1737706977797,0.0052616,105320.0,105310.0,0.0155593]
[1737706978246,1.17160672,105330.0,105310.0,0.0155593]
[1737706978565,1.16497995,105330.0,105310.0,0.0155593]
[1737706979142,1.16497895,105330.0,105310.0,0.0155593]
[1737706979353,0.97509095,105330.0,105310.0,0.1605593]
[1737706979571,1.16498095,105330.0,105310.0,0.1605593]
[1737706979774,1.16498095,105330.0,105310.0,0.1625593]
[1737706979940,0.97509095,105330.0,105310.0,0.1724467]
[1737706980144,0.97509095,105330.0,105310.0,0.1714467]
[1737706980484,0.117948,105320.0,105310.0,0.0128874]
[1737706980681,0.44366935,105320.0,105310.0,0.0128874]
[1737706980859,0.44366935,105320.0,105310.0,0.002]
[1737706981451,0.34872135,105320.0,105280.0,0.082742]
[1737706981658,0.30304906,105290.0,105280.0,0.000142]
[1737706981897,0.379885,105300.0,105280.0,0.17136761]
[1737706981898,0.0811,105300.0,105280.0,0.17136761]
[1737706982115,0.22446,105310.0,105290.0,0.434924]
[1737706982319,0.32180529,105310.0,105290.0,0.434924]
[1737706982520,0.22684729,105310.0,105290.0,0.434924]
[1737706982724,0.22684729,105310.0,105290.0,0.6347588]
[1737706982934,0.32180529,105310.0,105290.0,0.4448078]
[1737706983597,0.42577935,105310.0,105290.0,0.4448078]
[1737706983991,0.33082135,105310.0,105290.0,0.6367588]
[1737706984194,0.33082135,105310.0,105290.0,0.4867588]
[1737706984619,0.33082135,105310.0,105290.0,0.4877588]
[1737706985257,0.33082135,105310.0,105290.0,0.4877498]
[1737706987707,0.42577835,105310.0,105290.0,0.4877498]
[1737706988907,0.42577835,105310.0,105290.0,0.49749196]
[1737706989787,0.33082135,105310.0,105290.0,0.49749196]
[1737706990003,0.30542135,105310.0,105300.0,0.094966]
[1737706990216,0.22432135,105310.0,105300.0,0.094966]
[1737706990432,0.22432135,105310.0,105290.0,0.59246096]
[1737706990433,0.40188035,105310.0,105290.0,0.29765516]
[1737706990671,0.40188035,105310.0,105290.0,0.30753216]
[1737706991305,0.30692135,105310.0,105290.0,0.49748216]
[1737706991514,0.40187835,105310.0,105290.0,0.49748216]
[1737706991701,0.40187835,105310.0,105290.0,0.30753216]
[1737706991909,0.59179335,105310.0,105290.0,0.30653216]
[1737706992253,0.10397406,105300.0,105290.0,0.30653216]
[1737706992479,0.10397406,105300.0,105290.0,0.30453216]
[1737706992689,0.10397406,105300.0,105290.0,0.01961916]
[1737706992885,0.10397406,105300.0,105290.0,0.01869396]
[1737706993100,0.10397406,105300.0,105290.0,0.10479196]
[1737706993267,0.10397406,105300.0,105290.0,0.10679196]
[1737706993479,0.10397406,105300.0,105290.0,0.10579196]
[1737706993685,0.10397406,105300.0,105290.0,0.10479196]
[1737706993915,0.10397406,105300.0,105290.0,0.098117]
[1737706994113,0.30692135,105310.0,105290.0,0.478009]
[1737706994384,0.1206455,105310.0,105290.0,0.478009]
[1737706994552,0.22461956,105310.0,105290.0,0.478009]
[1737706994970,0.22461956,105310.0,105290.0,0.50106003]
[1737706995340,0.22461956,105310.0,105290.0,0.50206003]
[1737706995568,0.02329821,105310.0,105300.0,0.094966]
[1737706996520,0.12727227,105310.0,105300.0,0.094966]
[1737706996728,0.50949456,105310.0,105290.0,0.3870334]
[1737706996960,0.42326141,105300.0,105290.0,0.01425073]
[1737706997183,0.54936141,105300.0,105290.0,0.02420733]
[1737706997396,0.54936141,105300.0,105290.0,0.01425073]
[1737706997604,0.44538735,105300.0,105290.0,0.01425073]
[1737706998376,0.54936141,105300.0,105290.0,0.01525073]
[1737706998603,0.44538735,105300.0,105290.0,0.01525073]
[1737706998845,0.44538735,105300.0,105290.0,0.01425073]
[1737706999044,0.44538735,105300.0,105290.0,0.001142]
[1737706999253,0.44538735,105300.0,105290.0,0.003142]
[1737706999486,0.54936141,105300.0,105290.0,0.001142]
[1737706999903,0.54936141,105300.0,105290.0,0.003142]
[1737707000111,0.55936141,105300.0,105290.0,0.003142]
[1737707000850,0.46409398,105300.0,105290.0,0.003142]
[1737707001187,0.46409398,105300.0,105290.0,0.001142]
[1737707001397,0.46409398,105300.0,105290.0,0.000142]
[1737707001597,0.46409398,105300.0,105290.0,0.001142]
[1737707001799,0.36912798,105300.0,105290.0,0.096117]
[1737707002058,0.13905392,105300.0,105290.0,0.096117]
[1737707002426,0.14005392,105300.0,105290.0,0.096117]
[1737707002719,0.14005392,105300.0,105290.0,0.095117]
[1737707002889,0.13905392,105300.0,105290.0,0.095117]
[1737707003197,0.13905392,105300.0,105290.0,0.097117]
[1737707003401,0.24302798,105300.0,105290.0,0.097117]
[1737707003608,0.33799398,105300.0,105290.0,0.002142]
[1737707003812,0.24302798,105300.0,105290.0,0.097117]
[1737707004012,0.22432135,105300.0,105290.0,0.097117]
[1737707004813,0.22432135,105300.0,105290.0,0.098117]
[1737707005207,0.12034729,105300.0,105290.0,0.098117]
[1737707005408,0.07709821,105310.0,105290.0,0.193084]
[1737707005579,0.1926035,105310.0,105290.0,0.477994]
[1737707006002,0.1926035,105310.0,105290.0,0.4878085]
[1737707006246,0.1926035,105310.0,105290.0,0.4868085]
[1737707006511,0.29657756,105310.0,105290.0,0.4848085]
[1737707006748,0.48649456,105310.0,105290.0,0.2968665]
[1737707007606,0.48649456,105310.0,105290.0,0.4878175]
[1737707007916,0.10397406,105300.0,105290.0,0.2978665]
[1737707008115,0.37537756,105310.0,105290.0,0.2978665]
[1737707008447,0.37537756,105310.0,105290.0,0.4878165]
[1737707008583,0.37537756,105310.0,105290.0,0.4868165]
[1737707008984,0.37537756,105310.0,105290.0,0.49711372]
[1737707009186,0.20161956,105310.0,105300.0,0.094966]
[1737707009625,0.29657856,105310.0,105290.0,0.48629022]
[1737707009931,0.29657856,105310.0,105290.0,0.49411262]
[1737707010408,0.29757856,105310.0,105290.0,0.49411262]
[1737707010613,0.29657856,105310.0,105290.0,0.49411262]
[1737707010793,0.29657856,105310.0,105290.0,0.49711262]
[1737707011369,0.10397406,105300.0,105290.0,0.30717062]
[1737707011576,0.31928735,105300.0,105290.0,0.0129644]
[1737707011780,0.55816141,105300.0,105290.0,0.0129644]
[1737707011999,0.55816141,105300.0,105290.0,0.003142]
[1737707012415,0.55816141,105300.0,105290.0,0.002142]
[1737707012617,0.55816141,105300.0,105290.0,0.000142]
[1737707012968,0.44518735,105300.0,105290.0,0.000142]
[1737707013092,0.44518735,105300.0,105290.0,0.001142]
[1737707013908,0.46451024,105300.0,105290.0,0.001142]
[1737707014555,0.46451024,105300.0,105290.0,0.000142]
[1737707015129,0.5684843,105300.0,105290.0,0.000142]
[1737707015550,0.46451024,105300.0,105290.0,0.000142]
[1737707016677,0.22194906,105290.0,105270.0,0.4849189]
[1737707016877,0.31929635,105290.0,105270.0,0.474938]
[1737707017393,0.50924735,105290.0,105270.0,0.4848494]
[1737707017928,0.50924735,105290.0,105270.0,0.4858494]
[1737707018726,0.50924735,105290.0,105270.0,0.4859914]
[1737707019127,0.50924735,105290.0,105270.0,0.4909914]
[1737707019512,0.10397406,105280.0,105270.0,0.3010154]
[1737707019746,0.31929635,105290.0,105280.0,0.094984]